bitfinex/quotes_BTCUSD_20250226
["timestamp","ask_amount","ask_price","bid_price","bid_amount"]
[1740591685757,0.00097198,86701.0,86700.0,0.52399781]
[1740591686376,0.00485,86731.0,86730.0,0.02]
[1740591686598,0.17307769,86728.0,86727.0,0.02]
[1740591687118,0.172974,86718.0,86701.0,1.5]
[1740591687322,0.230611,86726.0,86700.0,0.0756]
[1740591687537,0.00012369,86728.0,86727.0,0.02]
[1740591687788,0.00012369,86728.0,86705.0,0.36914203]
[1740591688045,0.172972,86719.0,86705.0,0.36914203]
[1740591688169,0.00012369,86728.0,86701.0,0.0810602]
[1740591688368,0.22046,86727.0,86701.0,0.0810602]
[1740591688576,0.172964,86723.0,86722.0,0.02]
[1740591688848,0.00485,86743.0,86702.0,0.05846622]
[1740591688849,0.00048726,86757.0,86729.0,0.02]
[1740591689010,0.02,86776.0,86727.0,0.002]
[1740591689011,0.172935,86738.0,86731.0,0.02]
[1740591689216,0.172946,86732.0,86731.0,0.02]
[1740591689995,0.172948,86731.0,86730.0,0.02]
[1740591690209,0.138802,86731.0,86710.0,0.02]
[1740591690405,0.172988,86711.0,86710.0,0.02]
[1740591690617,0.172956,86727.0,86726.0,0.02]
[1740591690818,0.34635526,86739.0,86722.0,0.02]
[1740591690819,0.172964,86723.0,86722.0,0.02]
[1740591691032,0.01055135,86744.0,86722.0,0.02]
[1740591691235,0.172964,86723.0,86722.0,0.02]
[1740591691438,0.172924,86744.0,86730.0,0.02]
[1740591691656,0.00485,86753.0,86734.0,0.02]
[1740591691856,0.172928,86741.0,86740.0,0.02]
[1740591692759,0.00485,86753.0,86740.0,0.02]
[1740591693014,0.00485,86769.0,86753.0,0.02]
[1740591693442,0.034681,86763.0,86753.0,0.02]
[1740591693660,0.173752,86754.0,86753.0,0.02]
[1740591694092,0.00085,86754.0,86753.0,0.02]
[1740591694332,0.17294,86735.0,86734.0,0.001]
[1740591694728,0.17294,86735.0,86734.0,0.01338]
[1740591694978,0.17294,86735.0,86734.0,0.03338]
[1740591695183,0.01192,86770.0,86753.0,0.02]
[1740591695396,0.173752,86754.0,86753.0,0.02]
[1740591695605,0.00085,86754.0,86753.0,0.02]
[1740591696695,0.00085,86754.0,86753.0,0.02008]
[1740591697310,0.0003666,86789.0,86770.0,0.02]
[1740591697524,0.172868,86771.0,86770.0,0.02]
[1740591697742,0.034676,86775.0,86774.0,0.02]
[1740591697960,0.490841,86775.0,86774.0,0.02]
[1740591698162,0.17287,86770.0,86769.0,0.02]
[1740591698372,0.034675,86788.0,86758.0,0.1018]
[1740591698596,0.172876,86768.0,86764.0,0.02]
[1740591698804,0.172858,86776.0,86775.0,0.02]
[1740591700329,0.00485,86795.0,86783.0,0.02]
[1740591700521,0.17295569,86789.0,86788.0,0.02]
[1740591701709,0.00012369,86789.0,86788.0,0.02]
[1740591702040,0.00012369,86789.0,86788.0,0.4423]
[1740591702398,0.00012369,86789.0,86788.0,0.48653]
[1740591702541,0.00012369,86789.0,86788.0,0.659364]
[1740591702943,0.00485,86795.0,86794.0,0.492823]
[1740591703143,0.00526213,86795.0,86794.0,0.42954085]
[1740591703334,0.00526213,86795.0,86794.0,0.60236385]
[1740591703539,0.00526213,86795.0,86794.0,0.50885696]
[1740591703779,0.00526213,86795.0,86794.0,0.50485696]
[1740591704340,0.00526213,86795.0,86794.0,0.48485696]
[1740591704559,0.17808313,86795.0,86794.0,0.48485696]
[1740591704763,0.17808313,86795.0,86794.0,0.391]
[1740591704966,0.00526213,86795.0,86794.0,0.391]
[1740591705606,0.17808313,86795.0,86794.0,0.075]
[1740591705802,0.00526213,86795.0,86794.0,0.095]
[1740591706183,0.00526213,86795.0,86794.0,0.09508]
[1740591706387,0.00526213,86795.0,86794.0,0.109238]
[1740591706629,0.00526213,86795.0,86794.0,0.034238]
[1740591706815,0.00526213,86795.0,86794.0,0.02008]
[1740591707419,0.172802,86805.0,86804.0,0.02]
[1740591707643,0.00485,86807.0,86806.0,0.02]
[1740591708016,0.177647,86807.0,86806.0,0.02]
[1740591708806,0.172821,86795.0,86794.0,0.02008]
[1740591709023,0.172801,86805.0,86804.0,0.02]
[1740591709692,0.235248,86807.0,86794.0,0.02008]
[1740591709693,0.172821,86795.0,86794.0,0.02008]
[1740591712237,0.172821,86795.0,86794.0,8e-05]
[1740591712842,0.172821,86795.0,86794.0,0.02008]
[1740591713043,0.172821,86795.0,86794.0,0.0009276]
[1740591713400,0.172821,86795.0,86794.0,0.0209276]
[1740591713811,0.172821,86795.0,86794.0,0.0009276]
[1740591714208,0.172821,86795.0,86794.0,0.0209276]
[1740591714733,0.172821,86795.0,86794.0,0.0009276]
[1740591714937,0.172821,86795.0,86794.0,6e-07]
[1740591715136,1.15382178,86795.0,86794.0,6e-07]
[1740591715337,0.17311878,86795.0,86794.0,6e-07]
[1740591717045,0.172821,86795.0,86794.0,6e-07]
[1740591717250,0.0052738,86807.0,86798.0,0.02]
[1740591717456,0.172813,86799.0,86798.0,0.02]
[1740591717659,0.0052738,86807.0,86798.0,0.02]
[1740591717882,0.1404,86806.0,86799.0,0.02]
[1740591718086,0.172811,86800.0,86799.0,0.02]
[1740591718409,0.172811,86800.0,86794.0,6e-07]
[1740591718410,0.172821,86795.0,86794.0,6e-07]
[1740591720933,0.172821,86795.0,86783.0,8e-05]
[1740591720934,0.172842,86784.0,86783.0,0.02008]
[1740591721140,0.572663,86784.0,86783.0,8e-05]
[1740591721343,0.872786,86784.0,86783.0,8e-05]
[1740591721544,1.481845,86784.0,86783.0,1e-06]
[1740591721752,0.55076275,86784.0,86783.0,1e-06]
[1740591721947,0.55036385,86784.0,86783.0,1e-06]
[1740591722202,1.53106685,86784.0,86783.0,1e-06]
[1740591722408,1.84332884,86784.0,86783.0,1e-06]
[1740591722620,1.84332884,86784.0,86726.0,0.04788]
[1740591722621,0.172946,86732.0,86726.0,0.04788]
[1740591722824,0.480459,86732.0,86731.0,0.0140197]
[1740591723047,0.444892,86732.0,86731.0,0.00125913]
[1740591723256,0.230581,86738.0,86731.0,0.02125913]
[1740591723469,0.172932,86739.0,86738.0,0.02]
[1740591723674,0.201803,86739.0,86736.0,0.02]
[1740591723825,0.172946,86732.0,86731.0,0.00125913]
[1740591724026,0.172946,86732.0,86731.0,0.03169304]
[1740591724237,0.172946,86732.0,86731.0,0.02125913]
[1740591724434,0.751387,86732.0,86731.0,0.00125913]
[1740591724693,0.530667,86732.0,86731.0,0.00125913]
[1740591724859,0.172946,86732.0,86731.0,0.00125913]
[1740591725052,1.122295,86732.0,86731.0,0.00125913]
[1740591725257,1.085958,86732.0,86731.0,0.00125913]
[1740591725663,0.913012,86732.0,86725.0,1.3e-07]
[1740591725873,0.913012,86732.0,86725.0,8.2e-07]
[1740591725874,0.172958,86726.0,86725.0,8.2e-07]
[1740591726089,0.813058,86726.0,86725.0,8.2e-07]
[1740591726325,0.82806084,86726.0,86725.0,8.2e-07]
[1740591726540,0.82806084,86726.0,86707.0,0.0008464]
[1740591726541,0.172994,86708.0,86707.0,0.0008464]
[1740591726744,0.44722,86708.0,86707.0,0.00097009]
[1740591726947,1.153697,86708.0,86707.0,0.00097009]
[1740591727298,1.49653785,86708.0,86707.0,0.00097009]
[1740591727900,1.49653785,86708.0,86707.0,9e-08]
[1740591727901,1.81779614,86708.0,86707.0,9e-08]
[1740591728072,0.48754685,86702.0,86701.0,9e-08]
[1740591728269,0.48755685,86697.0,86696.0,9e-08]
[1740591728557,0.49931685,86697.0,86696.0,9e-08]
[1740591728733,0.473036,86687.0,86686.0,9e-08]
[1740591728933,0.81587685,86687.0,86686.0,0.00041296]
[1740591729134,0.81637948,86687.0,86686.0,0.00041296]
[1740591729274,0.83763777,86687.0,86686.0,0.00041296]
[1740591729693,0.83763777,86687.0,86686.0,9.6e-07]
[1740591729903,0.85023798,86687.0,86686.0,9.6e-07]
[1740591730119,0.3,86684.0,86672.0,9.6e-07]
[1740591730314,0.18760485,86673.0,86672.0,9.6e-07]
[1740591730602,0.184864,86673.0,86672.0,9.6e-07]
[1740591731227,0.35047244,86687.0,86672.0,9.6e-07]
[1740591731430,0.173064,86673.0,86672.0,9.6e-07]
[1740591731718,0.0118,86681.0,86673.0,0.02]
[1740591731719,0.173062,86674.0,86673.0,0.02]
[1740591731946,0.173064,86673.0,86672.0,0.02000096]
[1740591732172,0.173064,86673.0,86672.0,9.6e-07]
[1740591732173,1.153767,86673.0,86672.0,9.6e-07]
[1740591732351,0.18760485,86673.0,86672.0,9.6e-07]
[1740591732555,0.20073386,86673.0,86672.0,9.6e-07]
[1740591732762,0.55029215,86673.0,86672.0,9.6e-07]
[1740591732970,0.55062119,86673.0,86672.0,9.6e-07]
[1740591733185,0.85062119,86673.0,86672.0,9.6e-07]
[1740591733388,0.82262229,86673.0,86672.0,9.6e-07]
[1740591733611,0.173086,86662.0,86661.0,9.6e-07]
[1740591733794,0.473106,86652.0,86651.0,3.6e-07]
[1740591733974,0.48764685,86652.0,86651.0,3.6e-07]
[1740591734536,0.49264685,86652.0,86651.0,3.6e-07]
[1740591734951,0.19436429,86652.0,86651.0,3.6e-07]
[1740591735150,0.19436429,86652.0,86651.0,0.00012414]
[1740591735367,0.02125829,86652.0,86651.0,0.02012414]
[1740591735618,0.02125829,86652.0,86651.0,0.10022414]
[1740591735830,0.02125829,86652.0,86651.0,0.11074655]
[1740591736356,0.02125829,86652.0,86651.0,0.10022414]
[1740591736695,0.1011718,86678.0,86672.0,0.02]
[1740591736893,0.173058,86676.0,86675.0,0.02]
[1740591737301,0.17307,86670.0,86669.0,0.02]
[1740591737500,0.1011718,86678.0,86669.0,0.02]
[1740591737703,0.1011718,86678.0,86674.0,0.02]
[1740591737956,0.1731,86655.0,86654.0,0.3]
[1740591738109,0.403802,86676.0,86675.0,0.02]
[1740591738520,0.173058,86676.0,86675.0,0.02]
[1740591738724,0.1011718,86678.0,86675.0,0.02]
[1740591738925,0.2742258,86678.0,86677.0,0.02]
[1740591739245,0.1011718,86678.0,86677.0,0.102]
[1740591739589,0.1011718,86678.0,86677.0,0.1599]
[1740591739867,0.17303,86690.0,86689.0,0.02]
[1740591740313,0.363009,86710.0,86677.0,0.1297]
[1740591740314,0.00041177,86707.0,86696.0,0.02]
[1740591740520,0.173012,86699.0,86698.0,0.02]
[1740591740924,0.173016,86697.0,86696.0,0.02]
[1740591741126,0.608342,86697.0,86696.0,0.02]
[1740591741241,0.280616,86697.0,86696.0,0.02]
[1740591742071,0.173016,86697.0,86696.0,0.02]
[1740591742857,0.173052,86679.0,86678.0,0.39229616]
[1740591743061,0.17302,86695.0,86694.0,0.02]
[1740591743261,0.47695,86695.0,86694.0,0.02]
[1740591743461,0.684137,86695.0,86691.0,0.02]
[1740591743661,0.3283,86715.0,86678.0,0.3]
[1740591743662,0.980703,86694.0,86678.0,0.3]
[1740591743861,0.230693,86695.0,86692.0,0.02]
[1740591744063,0.980703,86694.0,86678.0,0.02]
[1740591744269,0.00055603,86694.0,86662.0,0.0777]
[1740591744632,0.558815,86693.0,86686.0,0.02]
[1740591744851,0.173036,86688.0,86686.0,0.02]
[1740591744983,0.74905,86687.0,86686.0,0.02]
[1740591745186,0.00041177,86695.0,86686.0,0.02]
[1740591745603,0.168393,86694.0,86686.0,0.02]
[1740591745801,0.00041177,86695.0,86690.0,0.02]
[1740591746017,0.139104,86694.0,86690.0,0.02]
[1740591746408,0.139104,86694.0,86687.0,0.02]
[1740591746587,0.00041177,86695.0,86694.0,0.02]
[1740591747432,0.00041177,86695.0,86688.0,0.0771]
[1740591747433,0.53111977,86695.0,86688.0,0.0771]
[1740591747632,0.173045,86683.0,86674.0,0.0795]
[1740591747889,0.553369,86682.0,86680.0,0.02]
[1740591748012,0.17304,86685.0,86684.0,0.02]
[1740591748245,0.107714,86685.0,86684.0,0.02]
[1740591748463,0.685607,86693.0,86684.0,0.02]
[1740591748761,0.173038,86686.0,86685.0,0.02]
[1740591748928,1.122638,86686.0,86685.0,0.02]
[1740591749125,0.635866,86686.0,86674.0,0.0795]
[1740591749326,0.359687,86685.0,86674.0,0.08745]
[1740591749524,0.230723,86684.0,86674.0,0.0795]
[1740591749732,0.953325,86683.0,86674.0,0.0795]
[1740591749992,0.02119496,86686.0,86674.0,0.0795]
[1740591750336,0.02119496,86686.0,86685.0,0.09229616]
[1740591750531,0.02119496,86686.0,86685.0,0.13929616]
[1740591750733,0.0004245,86694.0,86686.0,0.3]
[1740591751385,0.0004245,86694.0,86687.0,0.0818]
[1740591751591,0.0004245,86694.0,86689.0,0.3]
[1740591752789,0.0004245,86694.0,86687.0,0.0818]
[1740591753436,0.0004245,86694.0,86688.0,0.00161488]
[1740591753646,0.0004245,86694.0,86693.0,0.3]
[1740591753854,0.0004245,86694.0,86693.0,0.3758]
[1740591757078,0.0004245,86694.0,86693.0,0.37588]
[1740591759082,0.0004245,86694.0,86693.0,8e-05]
[1740591761130,0.3283,86719.0,86694.0,0.3]
[1740591761372,0.3283,86740.0,86702.0,0.09229616]
[1740591761556,0.00497348,86731.0,86703.0,0.423]
[1740591762005,0.378956,86730.0,86703.0,0.423]
[1740591762411,0.00057201,86729.0,86703.0,0.423]
[1740591762621,0.612065,86728.0,86703.0,0.423]
[1740591762838,0.438212,86728.0,86703.0,0.123]
[1740591763018,0.1011718,86730.0,86693.0,0.07618]
[1740591763019,0.01230798,86727.0,86693.0,0.07618]
[1740591763217,0.17302,86696.0,86693.0,8e-05]
[1740591763418,0.230636,86717.0,86693.0,8e-05]
[1740591763624,0.17358401,86699.0,86693.0,8e-05]
[1740591763846,0.3283,86715.0,86693.0,8e-05]
[1740591764046,0.501281,86715.0,86693.0,8e-05]
[1740591764243,0.44339,86714.0,86693.0,8e-05]
[1740591764464,0.3283,86715.0,86693.0,8e-05]
[1740591764670,0.223475,86714.0,86693.0,8e-05]
[1740591764896,0.23521097,86714.0,86693.0,8e-05]
[1740591765084,0.173022,86694.0,86693.0,8e-05]
[1740591765277,0.01454085,86712.0,86693.0,8e-05]
[1740591765481,0.18475497,86696.0,86693.0,8e-05]
[1740591765680,0.411308,86695.0,86693.0,8e-05]
[1740591766055,0.173022,86694.0,86693.0,8e-05]
[1740591766253,0.813788,86694.0,86693.0,8e-05]
[1740591766456,0.01168,86711.0,86693.0,8e-05]
[1740591766723,0.1011718,86709.0,86693.0,8e-05]
[1740591766926,0.173004,86703.0,86682.0,0.0775]
[1740591767058,0.1011718,86709.0,86683.0,0.00775]
[1740591767259,0.01292955,86714.0,86683.0,0.10004616]
[1740591767526,0.213377,86714.0,86683.0,0.10004616]
[1740591767731,0.230657,86709.0,86683.0,0.00775]
[1740591767863,0.980703,86708.0,86682.0,0.07791177]
[1740591768067,0.173015,86698.0,86682.0,0.07791177]
[1740591768410,0.66901119,86697.0,86682.0,0.07791177]
[1740591768610,0.173029,86691.0,86682.0,0.00041177]
[1740591768850,0.281983,86690.0,86682.0,0.00041177]
[1740591769042,0.153448,86689.0,86682.0,0.00041177]
[1740591769249,0.00057319,86697.0,86682.0,0.00041177]
[1740591769439,0.3283,86711.0,86682.0,0.00041177]
[1740591769666,1.15338,86711.0,86682.0,0.00041177]
[1740591769841,0.01454085,86709.0,86682.0,0.00041177]
[1740591770073,0.980703,86708.0,86682.0,0.00041177]
[1740591770272,0.980703,86709.0,86682.0,0.00041177]
[1740591770458,0.01309193,86707.0,86682.0,0.00041177]
[1740591770627,0.01454085,86704.0,86682.0,0.00049177]
[1740591770831,0.01454085,86702.0,86682.0,0.00049177]
[1740591771039,0.839204,86701.0,86682.0,0.00049177]
[1740591771230,0.00057319,86706.0,86682.0,0.00049177]
[1740591771431,0.28776,86705.0,86682.0,0.00049177]
[1740591771632,0.03455517,86703.0,86682.0,0.00049177]
[1740591771972,0.00057319,86718.0,86683.0,0.09229616]
[1740591772094,0.841797,86717.0,86684.0,0.33927879]
[1740591772304,0.647918,86717.0,86684.0,0.33927879]
[1740591772503,0.172998,86707.0,86684.0,0.33927879]
[1740591772713,0.98127695,86716.0,86684.0,0.33927879]
[1740591772954,0.034703,86721.0,86685.0,0.3818]
[1740591773194,0.0004242,86714.0,86694.0,0.3477]
[1740591774343,0.0004242,86714.0,86694.0,0.0477]
[1740591774558,0.01289055,86713.0,86694.0,0.0477]
[1740591774819,0.129063,86712.0,86694.0,0.0477]
[1740591775054,0.172995,86708.0,86694.0,0.0477]
[1740591775269,0.980703,86707.0,86687.0,0.3]
[1740591775419,0.980703,86711.0,86687.0,0.3]
[1740591775618,0.230653,86710.0,86694.0,0.001]
[1740591775971,0.265358,86710.0,86686.0,0.38420151]
[1740591776182,0.230679,86701.0,86694.0,0.001]
[1740591776392,0.495283,86700.0,86694.0,0.001]
[1740591776667,0.308831,86699.0,86687.0,0.35126417]
[1740591776868,0.129793,86700.0,86694.0,0.001]
[1740591777066,0.003,86710.0,86687.0,0.05126417]
[1740591777212,0.15615,86709.0,86688.0,0.04344043]
[1740591777632,0.003,86710.0,86688.0,0.04344043]
[1740591778470,0.003,86701.0,86688.0,0.04344043]
[1740591778705,0.265329,86720.0,86688.0,0.04344043]
[1740591778706,0.01081132,86733.0,86700.0,0.3462]
[1740591778895,0.003,86710.0,86709.0,0.09229616]
[1740591779095,0.003,86710.0,86709.0,0.40152578]
[1740591779461,0.006,86710.0,86709.0,0.40152578]
[1740591779659,0.003,86710.0,86709.0,0.40152578]
[1740591780098,0.003,86710.0,86709.0,0.40252578]
[1740591780299,0.003,86710.0,86709.0,0.31022962]
[1740591781272,0.00357444,86710.0,86709.0,0.301]
[1740591781456,0.00057444,86710.0,86709.0,0.3]
[1740591781662,0.17356444,86710.0,86709.0,0.301]
[1740591781869,0.55811244,86710.0,86709.0,0.001]
[1740591782173,0.696079,86710.0,86709.0,0.001]
[1740591782368,0.340358,86710.0,86709.0,0.001]
[1740591782605,0.305652,86710.0,86709.0,0.001]
[1740591783006,0.173004,86703.0,86687.0,0.0758]
[1740591783180,0.230656,86709.0,86688.0,0.04217284]
[1740591783317,0.600649,86708.0,86688.0,0.04217284]
[1740591783519,0.0247284,86708.0,86687.0,0.00012378]
[1740591783741,0.24874,86707.0,86687.0,0.00012378]
[1740591784061,0.467669,86709.0,86687.0,0.00012378]
[1740591784240,0.172998,86706.0,86687.0,0.00012378]
[1740591784444,0.60321,86709.0,86687.0,0.00012378]
[1740591784639,0.01164,86710.0,86687.0,0.00012378]
[1740591784640,0.173004,86704.0,86687.0,0.00012378]
[1740591784869,0.900506,86703.0,86687.0,0.00012378]
[1740591785097,0.294856,86702.0,86687.0,0.00012378]
[1740591785302,0.3283,86716.0,86687.0,0.00012378]
[1740591785303,0.3283,86716.0,86687.0,0.00097218]
[1740591785511,0.426872,86715.0,86687.0,0.00197218]
[1740591785711,0.0004242,86714.0,86698.0,0.09229616]
[1740591785882,0.0004242,86714.0,86700.0,0.0757]
[1740591786084,0.0004242,86714.0,86708.0,0.09229616]
[1740591787017,0.0004242,86714.0,86701.0,0.6273]
[1740591787621,0.004,86715.0,86701.0,0.6273]
[1740591788028,0.004,86715.0,86703.0,0.3]
[1740591788230,0.002,86714.0,86704.0,0.08045258]
[1740591788975,0.23059,86735.0,86704.0,0.08045258]
[1740591789179,0.230545,86751.0,86704.0,0.08045258]
[1740591789382,0.158389,86742.0,86707.0,0.09229616]
[1740591789583,0.002,86715.0,86707.0,0.09229616]
[1740591789791,0.002,86715.0,86708.0,0.38468487]
[1740591790761,0.10269674,86733.0,86708.0,0.08468487]
[1740591791160,0.27564174,86733.0,86708.0,0.08468487]
[1740591791430,0.10269674,86733.0,86708.0,0.08468487]
[1740591791598,0.230595,86732.0,86708.0,0.08468487]
[1740591791791,0.230595,86732.0,86709.0,0.05119375]
[1740591792017,0.001,86715.0,86709.0,0.05119375]
[1740591792376,0.230595,86732.0,86709.0,0.05119375]
[1740591792601,1.211298,86732.0,86709.0,0.05119375]
[1740591792807,0.230605,86729.0,86709.0,0.05119375]
[1740591793011,0.166337,86728.0,86708.0,0.001]
[1740591793293,0.02139302,86731.0,86708.0,0.001]
[1740591793711,0.00855785,86728.0,86708.0,0.001]
[1740591793912,0.00855785,86728.0,86723.0,0.09229616]
[1740591794116,0.00855785,86728.0,86724.0,0.423]
[1740591794319,0.00855785,86728.0,86725.0,0.35152962]
[1740591794434,0.02139302,86727.0,86725.0,0.35152962]
[1740591795263,0.02139302,86727.0,86726.0,0.3]
[1740591795626,0.10269674,86731.0,86727.0,0.3]
[1740591795627,0.10869674,86731.0,86727.0,0.3]
[1740591795781,0.10882022,86731.0,86727.0,0.3]
[1740591795986,0.10882022,86731.0,86728.0,0.08921258]
[1740591796190,0.10882022,86731.0,86730.0,0.47295]
[1740591796390,0.03072022,86731.0,86730.0,0.81479085]
[1740591796616,0.00485,86756.0,86742.0,0.3]
[1740591796790,0.00485,86756.0,86742.0,0.6273]
[1740591797218,0.00485,86756.0,86742.0,0.7084]
[1740591797591,0.00485,86756.0,86742.0,0.7094]
[1740591797794,0.01085,86743.0,86742.0,0.7094]
[1740591798038,0.00485,86743.0,86742.0,0.77934]
[1740591798376,0.00485,86743.0,86742.0,0.78334]
[1740591798718,0.00485,86743.0,86742.0,0.77934]
[1740591798924,0.00485,86743.0,86742.0,0.78234]
[1740591799323,0.00485,86743.0,86742.0,0.955266]
[1740591799537,0.00485,86743.0,86742.0,0.78234]
[1740591800203,0.00485,86743.0,86742.0,0.77934]
[1740591800554,0.00485,86743.0,86742.0,0.78234]
[1740591800754,0.00485,86743.0,86742.0,0.7084]
[1740591800956,0.00485,86743.0,86742.0,0.6273]
[1740591801159,0.00485,86743.0,86742.0,0.6313]
[1740591801367,0.00485,86743.0,86742.0,0.3]
[1740591801563,0.00485,86743.0,86742.0,0.302]
[1740591801766,0.00485,86743.0,86742.0,0.3322]
[1740591802769,0.00485,86743.0,86742.0,0.302]
[1740591803170,0.00485,86743.0,86742.0,0.3]
[1740591803637,0.00685,86743.0,86742.0,0.346]
[1740591803836,0.00485,86743.0,86742.0,0.346]
[1740591804150,0.00785,86743.0,86742.0,0.346]
[1740591804383,0.00785,86743.0,86742.0,0.3806]
[1740591804779,0.00785,86743.0,86742.0,0.3816]
[1740591804983,0.00485,86743.0,86742.0,2.054526]
[1740591805229,0.00485,86743.0,86742.0,2.058526]
[1740591805420,0.00485,86756.0,86745.0,0.3]
[1740591805752,0.00485,86756.0,86749.0,0.09229616]
[1740591805955,0.00485,86756.0,86752.0,0.3]
[1740591806881,0.00485,86756.0,86749.0,0.09229616]
[1740591807079,0.0213163,86755.0,86747.0,0.3]
[1740591807283,0.0213163,86755.0,86748.0,0.0900957]
[1740591807490,0.0213163,86755.0,86752.0,0.005]
[1740591807895,0.00485,86756.0,86752.0,0.005]
[1740591807896,0.02984307,86754.0,86752.0,0.005]
[1740591808097,0.02984307,86754.0,86748.0,0.0900957]
[1740591808300,0.02984307,86754.0,86749.0,0.08771957]
[1740591808779,0.00852677,86753.0,86749.0,0.08771957]
[1740591810068,0.00485,86756.0,86749.0,0.08771957]
[1740591810735,0.0004245,86770.0,86749.0,0.08771957]
[1740591810736,0.00027591,86770.0,86752.0,0.003]
[1740591810945,0.172882,86764.0,86749.0,0.08771957]
[1740591811168,0.00012369,86769.0,86750.0,0.07150196]
[1740591811378,0.17289,86761.0,86750.0,0.07150196]
[1740591811588,0.00012369,86769.0,86750.0,0.07150196]
[1740591811761,0.230504,86767.0,86746.0,0.3273]
[1740591811948,0.0004241,86756.0,86746.0,0.3273]
[1740591812349,0.0004241,86756.0,86747.0,0.3]
[1740591812669,0.02131137,86755.0,86747.0,0.3]
[1740591812867,0.02131137,86755.0,86748.0,0.07871]
[1740591813076,0.02131137,86755.0,86749.0,0.30161373]
[1740591813304,0.02131137,86755.0,86751.0,0.3]
[1740591813473,0.02131137,86755.0,86754.0,0.48744285]
[1740591813679,0.0004241,86756.0,86755.0,0.48744085]
[1740591813920,0.0004241,86756.0,86755.0,0.60129781]
[1740591814269,0.0004241,86756.0,86755.0,0.66669781]
[1740591814472,0.0004241,86756.0,86755.0,1.01399781]
[1740591814684,0.0004241,86756.0,86755.0,0.99399781]
[1740591814882,0.0004241,86756.0,86755.0,1.00099781]
[1740591815264,0.0004241,86756.0,86755.0,0.80109781]
[1740591815414,0.0004241,86756.0,86755.0,0.82109781]
[1740591815618,0.0004241,86756.0,86755.0,0.6727]
[1740591816384,0.0004241,86756.0,86755.0,0.6797]
[1740591816581,0.0004241,86756.0,86755.0,0.8526]
[1740591816824,0.0004241,86756.0,86755.0,0.86014085]
[1740591817026,0.0004241,86756.0,86755.0,0.86114085]
[1740591817187,0.0004241,86756.0,86755.0,0.96315594]
[1740591817629,0.0004241,86756.0,86755.0,0.97015594]
[1740591817844,0.0004241,86756.0,86755.0,3.01795594]
[1740591818036,0.0004241,86756.0,86755.0,3.03795594]
[1740591818412,0.0004241,86756.0,86755.0,3.02995594]
[1740591818794,0.00027591,86770.0,86768.0,0.472874]
[1740591819002,0.00027591,86770.0,86768.0,1.51425355]
[1740591819419,0.00027591,86770.0,86768.0,1.26197955]
[1740591819643,0.00027591,86770.0,86768.0,2.93485355]
[1740591820243,0.00027591,86770.0,86768.0,2.94185355]
[1740591820583,0.00027591,86770.0,86768.0,0.179874]
[1740591820740,0.00027591,86770.0,86768.0,0.22452456]
[1740591820919,0.3,86811.0,86774.0,0.172862]
[1740591821120,0.00041213,86797.0,86778.0,0.172854]
[1740591821334,0.00041213,86797.0,86777.0,0.00161295]
[1740591821539,0.00041213,86797.0,86780.0,0.172849]
[1740591821768,0.00041213,86797.0,86781.0,0.0172849]
[1740591822278,0.00041213,86797.0,86782.0,1.5]
[1740591823042,0.00041213,86797.0,86781.0,0.0172849]
[1740591823243,0.00041213,86797.0,86770.0,0.001613]
[1740591823594,0.00041213,86797.0,86771.0,0.403359]
[1740591823795,0.00041213,86797.0,86772.0,0.2321]
[1740591823796,0.00241213,86797.0,86772.0,0.2321]
[1740591823998,0.00241213,86797.0,86769.0,0.3]
[1740591824279,0.00441213,86797.0,86774.0,0.230483]
[1740591824475,0.00241213,86797.0,86776.0,0.230478]
[1740591824800,0.00441213,86797.0,86777.0,0.00161281]
[1740591824919,0.00041213,86797.0,86777.0,0.00161283]
[1740591825323,0.00083603,86797.0,86777.0,0.00161283]
[1740591825562,0.00083603,86797.0,86778.0,0.08225052]
[1740591825972,0.00083603,86797.0,86777.0,0.00161283]
[1740591826695,0.00083603,86797.0,86780.0,0.172849]
[1740591826901,0.00083603,86797.0,86778.0,0.172853]
[1740591827096,0.00083603,86797.0,86779.0,0.172852]
[1740591827308,0.00083603,86797.0,86777.0,0.230475]
[1740591827501,0.00083603,86797.0,86780.0,0.00161289]
[1740591827910,0.00083603,86797.0,86780.0,1.50261289]
[1740591828192,0.00083603,86797.0,86781.0,0.00161278]
[1740591828720,0.00083603,86797.0,86778.0,0.0557775]
[1740591829318,0.00083603,86797.0,86779.0,0.00161289]
[1740591829528,0.00083603,86797.0,86780.0,0.11385696]
[1740591830261,7e-05,86814.0,86781.0,0.3]
[1740591830463,0.17297661,86814.0,86781.0,0.3]
[1740591830695,0.00019361,86814.0,86781.0,0.3]
[1740591831057,0.230394,86808.0,86781.0,0.3]
[1740591831263,0.172801,86805.0,86782.0,0.07969345]
[1740591831463,0.172792,86810.0,86782.0,0.07969345]
[1740591831670,0.172794,86809.0,86782.0,0.07969345]
[1740591831886,0.1728,86806.0,86782.0,0.07969345]
[1740591832120,0.172795,86808.0,86782.0,0.07969345]
[1740591832318,0.00419361,86814.0,86783.0,0.08776279]
[1740591832516,0.0802,86811.0,86780.0,0.11485696]
[1740591832720,0.172843,86784.0,86780.0,0.001]
[1740591832991,0.172848,86781.0,86780.0,0.001]
[1740591833207,0.00141527,86797.0,86780.0,0.001]
[1740591833426,0.00141527,86797.0,86750.0,0.0768]
[1740591833427,0.230464,86782.0,86750.0,0.0768]
[1740591833664,0.362971,86788.0,86751.0,1.54049478]
[1740591833877,0.01194648,86781.0,86751.0,1.54049478]
[1740591834073,0.172838,86787.0,86751.0,1.54090691]
[1740591834284,0.3283,86788.0,86780.0,0.002]
[1740591834500,0.172817,86797.0,86760.0,0.3]
[1740591834712,0.23042,86798.0,86762.0,0.3]
[1740591834913,0.004,86788.0,86762.0,0.3]
[1740591835316,0.002,86787.0,86762.0,0.3]
[1740591835561,0.002,86787.0,86762.0,0.30041213]
[1740591835718,0.002,86787.0,86763.0,0.03004121]